[Event "Israeli Team U18-ch 2022"]
[Site "Be'er Ya'akov"]
[Date "2022.08.16"]
[Round "7.3"]
[White "Uritsky, Yonathan"]
[Black "Weisbuch, Ido"]
[Result "1-0"]
[ECO "A26"]
[WhiteElo "2130"]
[BlackElo "1479"]
[Annotator "TA"]
[PlyCount "55"]
[EventDate "2022.08.14"]
[EventCountry "ISR"]
[SourceTitle "playchess.com"]
[Source "ChessBase"]
[SourceQuality "1"]
[TimeControl "3000+10"]

{[%evp 15,55,0,31,30,47,45,54,45,110,-1,48,42,62,57,64,53,241,261,247,253,256,248,295,243,332,274,378,371,369,361,866,842,1050,1060,1160,1082,1058,1052,1441,1426,1402,1404]} 1. Nf3 {[%emt 0:00:03]} Nf6 {[%emt 0:00:22]} 2. g3 {[%emt 0:00:04]} g6 {[%emt 0:00:56]} 3. Bg2 {[%emt 0:00:05]} Bg7 {[%emt 0:00:37]} 4. O-O {[%emt 0:00:02]} d6 {[%emt 0:00:01]} 5. c4 {[%emt 0:00:15]} O-O {[%emt 0:01:26]} 6. Nc3 {[%emt 0:00:31]} e5 {[%emt 0:01:01]} 7. d3 {[%emt 0:00:10]} Nc6 {[%emt 0:01:16]} 8. Rb1 {[%emt 0:00:06]} Ne7 {[%emt 0:11:26]} 9. b4 {[%emt 0:00:57][%cal Bb2b4,Bb4b5][%mdl 32] A26: English Opening vs King's Indian with ...Nc6 and d3.} c6 {[%emt 0:01:46]} 10. b5 {[%emt 0:01:43]} Qc7 {[%emt 0:03:09] [#]} 11. Qc2 $146 {[%emt 0:01:32] White is slightly better.} ({Predecessor:} 11. bxc6 bxc6 12. Ba3 Bd7 13. Nxe5 dxe5 14. Bxe7 Rfe8 15. Bc5 Rab8 16. Qa4 a5 17. Qa3 Rxb1 18. Rxb1 {1-0 (26) Teran Alvarez,I (2422)-Ferrer Freyre,D (2042) Seville 2012}) 11... d5 {[%emt 0:05:24] [#]} (11... Bg4 $14) 12. a4 {[%emt 0:01:54] White is more active.} (12. bxc6 $1 $16 {cxd5 is the strong threat.} bxc6 13. cxd5 Nexd5 14. Nxd5 Nxd5 15. Bd2) 12... dxc4 {[%emt 0:04:22]} (12... d4 $1 $11 13. Na2 (13. Ne4 Nxe4 14. dxe4 c5 $15) 13... Rd8) 13. dxc4 $14 {[%emt 0:00:24]} Bf5 {[%emt 0:00:03]} 14. e4 {[%emt 0:00:09]} Be6 {[%emt 0:00:10]} 15. c5 {[%emt 0:01:53]} cxb5 $2 {[%emt 0:01:06] [#] This costs Black the game.} ({Black should play} 15... Rfd8 $14) 16. Nxb5 $18 {[%emt 0:00:10][%cal Bc3b5,Bb5d6,Bd6c4][%mdl 32]} Qb8 {[%emt 0:02:58]} 17. Nd6 {[%emt 0:02:21]} b6 {[%emt 0:00:41]} 18. Nxe5 {[%emt 0:00:41]} Ne8 {[%emt 0:02:48]} 19. Nec4 {[%emt 0:02:43]} Qc7 {[%emt 0:03:29]} 20. Ba3 {[%emt 0:01:34]} ({Less strong is} 20. cxb6 axb6 21. e5 Bxe5 $14) 20... Bxc4 {[%emt 0:07:07]} 21. Nxc4 {[%emt 0:00:29]} bxc5 {[%emt 0:00:40]} 22. e5 {[%emt 0:00:02]} Rc8 {[%emt 0:00:33]} (22... Nc6 23. Bxc5 Rc8 24. Bxf8 Bxf8) 23. Rb7 {[%emt 0:00:14] White is clearly winning.} Qd8 {[%emt 0:00:50]} 24. Rd1 {[%emt 0:00:12]} Nd5 {[%emt 0:00:31]} 25. Bxd5 {[%emt 0:00:27]} Qg5 {[%emt 0:00:18]} 26. f4 {[%emt 0:00:26]} Qg4 {[%emt 0:00:12]} 27. Ne3 {[%emt 0:00:05]} Qh5 {[%emt 0:00:26]} 28. Kg2 {[%emt 0:00:20] Weighted Error Value: White=0.30/Black=0.59} 1-0

[Event "Israeli Team U18-ch 2022"]
[Site "Be'er Ya'akov"]
[Date "2022.08.16"]
[Round "7.4"]
[White "Ben-Gera, Omer"]
[Black "Duchan, Yoav"]
[Result "0-1"]
[ECO "B35"]
[WhiteElo "1304"]
[BlackElo "1786"]
[Annotator "NA RC"]
[PlyCount "70"]
[EventDate "2022.08.14"]
[EventCountry "ISR"]
[SourceTitle "playchess.com"]
[Source "ChessBase"]
[SourceQuality "1"]
[TimeControl "3000+10"]

1. e4 {[%emt 0:00:02]} c5 {[%emt 0:00:05]} 2. Nf3 {[%emt 0:00:12]} Nc6 {[%emt 0:00:04]} 3. d4 {[%emt 0:00:06]} cxd4 {[%emt 0:00:04]} 4. Nxd4 {[%emt 0:00:03]} g6 {[%emt 0:00:20]} 5. Nc3 {[%emt 0:00:10]} Bg7 {[%emt 0:00:04]} 6. Be3 {[%emt 0:00:04]} Nf6 {[%emt 0:00:09]} 7. Qd2 {[%emt 0:00:12]} Ng4 {[%emt 0:00:40]} 8. Bc4 {[%emt 0:01:21]} Nxe3 {[%emt 0:00:23]} 9. fxe3 {[%emt 0:00:20]} O-O {[%emt 0:00:26]} 10. O-O-O {[%emt 0:00:29]} d6 {[%emt 0:01:37]} 11. Qf2 {[%emt 0:00:56]} Ne5 {[%emt 0:00:49]} 12. Be2 {[%emt 0:00:44]} a6 {[%emt 0:02:59]} 13. h4 {[%emt 0:01:15]} h5 {[%emt 0:02:02]} 14. Rdg1 {[%emt 0:02:33]} Bg4 {[%emt 0:00:40]} 15. Nf3 {[%emt 0:01:06]} Qd7 {[%emt 0:13:53]} 16. Nd5 {[%emt 0:00:51]} Rae8 {[%emt 0:02:07]} 17. Nxe5 {[%emt 0:01:30]} Bxe5 {[%emt 0:00:18]} 18. Nb6 {[%emt 0:01:03]} Qc6 {[%emt 0:02:59]} 19. Nc4 {[%emt 0:00:55]} Bg3 {[%emt 0:05:11]} 20. Qxg3 {[%emt 0:01:20]} Bxe2 {[%emt 0:02:40]} 21. Nd2 {[%emt 0:01:07]} Bd3 {[%emt 0:01:13]} 22. c3 {[%emt 0:00:12]} Qa4 {[%emt 0:00:37]} 23. Nb3 {[%emt 0:01:01]} Qxa2 {[%emt 0:00:14]} 24. Nd4 {[%emt 0:00:18]} e5 {[%emt 0:02:43]} 25. Nc2 {[%emt 0:01:06]} Qa4 {[%emt 0:04:04]} 26. Na3 {[%emt 0:01:11]} Bxe4 {[%emt 0:00:57]} 27. Qg5 {[%emt 0:00:47]} Bf5 {[%emt 0:00:40]} 28. Rf1 {[%emt 0:01:00]} Qg4 {[%emt 0:00:40]} 29. Qh6 {[%emt 0:01:16]} b5 {[%emt 0:00:38]} 30. Rf3 {[%emt 0:01:30]} b4 {[%emt 0:00:54]} 31. Nc4 {[%emt 0:02:02]} Qxc4 {[%emt 0:01:22]} 32. Rxf5 {[%emt 0:00:23]} bxc3 {[%emt 0:01:47]} 33. Rxh5 {[%emt 0:00:29]} cxb2+ {[%emt 0:00:07]} 34. Kd2 {[%emt 0:00:14]} Qb4+ {[%emt 0:00:17]} 35. Ke2 {[%emt 0:00:28]} Qg4+ {[%emt 0:00:08]} 0-1

[Event "Israeli Team U18-ch 2022"]
[Site "Be'er Ya'akov"]
[Date "2022.08.16"]
[Round "7.6"]
[White "Milikow, Yoav"]
[Black "Neiman, Maks"]
[Result "1-0"]
[ECO "D11"]
[WhiteElo "2452"]
[BlackElo "2110"]
[Annotator "TA"]
[PlyCount "39"]
[EventDate "2022.08.14"]
[EventCountry "ISR"]
[SourceTitle "playchess.com"]
[Source "ChessBase"]
[SourceQuality "1"]
[TimeControl "3000+10"]

{[%evp 9,39,12,18,14,8,7,5,10,12,14,20,12,3,0,25,31,28,25,39,18,18,19,26,16,23,30,18,23,92,56,70,60]} 1. d4 {[%emt 0:00:03]} d5 {[%emt 0:00:16]} 2. c4 {[%emt 0:00:05]} c6 {[%emt 0:00:23]} 3. Nf3 {[%emt 0:00:05]} Nf6 {[%emt 0:00:15]} 4. g3 {[%emt 0:00:13]} Bf5 {[%emt 0:00:41]} 5. Nc3 {[%emt 0:00:12]} e6 {[%emt 0:00:36]} 6. Nh4 {[%emt 0:00:16] D11: Slav Defence: 3 Nf3 sidelines and 3...Nf6 4 e3 Bg4.} dxc4 {[%emt 0:01:07]} 7. Nxf5 {[%emt 0:00:09]} exf5 {[%emt 0:00:06]} 8. e3 {[%emt 0:00:07] The position is equal.} Bd6 {[%emt 0:01:19]} 9. Bxc4 {[%emt 0:00:09]} O-O {[%emt 0:00:37]} 10. O-O {[%emt 0:00:31]} Nbd7 {[%emt 0:00:19]} 11. Re1 {[%emt 0:04:19] [#]} Qe7 $146 {[%emt 0:04:02]} ({Predecessor:} 11... Nb6 12. Bf1 Re8 13. Bg2 h5 14. h4 {½-½ (14) Yilmaz,M (2626)-Durarbayli,V (2628) Havana 2022}) 12. Bd3 {[%emt 0:08:37]} g6 {[%emt 0:03:34]} 13. e4 {[%emt 0:01:10]} fxe4 {[%emt 0:02:02]} 14. Nxe4 {[%emt 0:04:51]} (14. Bg5 $5 {[%cal Rc3e4]} Qe6 15. Bxe4 $14 (15. Nxe4 Nxe4 16. Bxe4 Nb6 $11)) 14... Nxe4 {[%emt 0:01:27]} 15. Rxe4 {[%emt 0:00:07]} Qf6 {[%emt 0:02:29]} 16. Qg4 {[%emt 0:01:20]} Nb6 {[%emt 0:13:30]} 17. Bg5 {[%emt 0:00:25]} Qg7 {[%emt 0:03:25] [#] Hoping for ...f5.} 18. Qh4 {[%emt 0:00:20] Black must now prevent Bf6.} h5 {[%emt 0:00:40]} (18... Rfe8 $1 $11 {keeps the balance.}) 19. g4 $16 {[%emt 0:04:25]} f6 {[%emt 0:07:47]} 20. Bd2 {[%emt 0:00:29] Weighted Error Value: White=0.02 (flawless) /Black=0.13 (very precise)} 1-0

[Event "Israeli Team U18-ch 2022"]
[Site "Be'er Ya'akov"]
[Date "2022.08.16"]
[Round "7.7"]
[White "Borodety, Itamar"]
[Black "Milikow, Elie"]
[Result "1-0"]
[ECO "B30"]
[WhiteElo "1939"]
[BlackElo "2433"]
[Annotator "TA"]
[PlyCount "107"]
[EventDate "2022.08.14"]
[EventCountry "ISR"]
[SourceTitle "playchess.com"]
[Source "ChessBase"]
[SourceQuality "1"]
[TimeControl "3000+10"]

{[%evp 9,107,12,49,52,31,46,42,38,75,73,110,85,137,123,120,135,134,131,152,0,0,0,0,0,0,0,0,0,0,0,0,0,0,0,191,195,319,290,287,287,925,920,892,282,271,238,238,241,239,220,234,225,344,361,487,235,322,312,321,129,160,139,316,238,266,236,361,235,453,443,457,451,607,608,579,572,710,711,1471,1486,1630,1456,1451,1536,2137,2105,29974,29975,29977,29978,29978,29979,29977,2411,29978,29979,29979,29980,29983,29984]} 1. e4 {[%emt 0:00:06]} c5 {[%emt 0:00:08]} 2. Nf3 {[%emt 0:00:13]} Nc6 {[%emt 0:00:13]} 3. Bb5 {[%emt 0:00:15]} e6 {[%emt 0:00:06]} 4. Bxc6 {[%emt 0:00:08]} bxc6 {[%emt 0:00:07]} 5. b3 {[%emt 0:00:10]} d6 {[%emt 0:01:04]} 6. e5 {[%emt 0:00:19] B30: Sicilian: 2...Nc6 3 Bb5, lines without ...g6.} dxe5 {[%emt 0:04:43]} 7. Nxe5 {[%emt 0:00:37]} Qg5 {[%emt 0:01:35][%csl LRe5,LRg2]} 8. Ng4 {[%emt 0:00:51] White is slightly better.} f5 {[%emt 0:01:02] [#]} 9. Qf3 {[%emt 0:01:53]} fxg4 {[%emt 0:04:25]} 10. Qxc6+ {[%emt 0:00:11]} Kd8 {[%emt 0:00:10]} (10... Kf7 $142 11. Qxa8 Qe5+ 12. Kd1 Qxa1) 11. Qxa8 $16 {[%emt 0:01:15]} Qe5+ {[%emt 0:00:24]} 12. Kd1 {[%emt 0:00:39] Hoping for Nc3.} Qxa1 {[%emt 0:01:18]} 13. Nc3 {[%emt 0:02:13] [#] Threatens to win with Ke2.} Nf6 $146 {[%emt 0:02:30]} ({Predecessor:} 13... a6 14. Ke2 Nf6 15. Rd1 c4 16. bxc4 Kc7 17. Qa7+ Bb7 18. c5 Nd5 19. Ba3 {1-0 (19) Gonzalez Vidal,Y (2553)-Almeida Quintana,O (2545) Merida 2018}) 14. Qxa7 {[%emt 0:08:00]} ({White should play} 14. Re1 $16 c4 15. Qxa7 cxb3 16. cxb3) 14... Nd5 {[%emt 0:02:17]} 15. Nxd5 {[%emt 0:03:38]} exd5 {[%emt 0:00:12]} 16. Qa5+ {[%emt 0:07:55]} Kd7 {[%emt 0:00:16]} (16... Ke8 $2 17. Re1+ Kd7 18. Qa4+ Kc7 19. Re8 $18) 17. Qb5+ {[%emt 0:05:16]} ({Don't play} 17. Re1 Bd6 18. Qb5+ Kc7 19. Qa5+ Kc6 20. Qa8+ (20. c4 dxc4 21. Qa4+ Kc7 $17) 20... Kc7 21. Qa5+ Kd7 22. Qa4+ Kc7 23. Qa5+ $15) 17... Kc7 {[%emt 0:01:25]} 18. Qa5+ {[%emt 0:00:29]} Kc6 {[%emt 0:00:36] White must now prevent ...Bd6.} 19. Qa8+ $1 {[%emt 0:00:30]} Bb7 {[%emt 0:01:12]} 20. Qe8+ {[%emt 0:00:39]} Kc7 {[%emt 0:00:57]} 21. Qf7+ {[%emt 0:00:50]} Kb6 $2 {[%emt 0:00:16] [#]} (21... Kb8 $11 {and Black has nothing to worry.} 22. Qe8+ Ka7) 22. Re1 $1 $18 {[%emt 0:01:54]} Bc6 {[%emt 0:06:13]} (22... Bd6 {keeps fighting.}) 23. Re6 {[%emt 0:00:56] Qd7 would kill now.} Bd6 {[%emt 0:10:56]} 24. Rxd6 {[%emt 0:00:03] Intending Qd7 and mate.} Qe5 $2 {[%emt 0:00:08]} (24... Rc8 25. a4 Rc7 26. Qxd5 Kb7) 25. Qd7 {[%emt 0:01:18]} Rc8 {[%emt 0:00:55]} 26. Re6 $2 {[%emt 0:00:02]} (26. a4 {White wants to mate with a5+.} d4 27. a5+ Kb5 28. Rxc6 (28. Qxc8 Qxd6 29. Ba3 Kxa5 $16) 28... Rxc6 29. Qb7+ Kxa5 30. Qxc6) 26... Qc7 {[%emt 0:01:27]} 27. Qxc7+ {[%emt 0:00:18]} Rxc7 {[%emt 0:00:05][%mdl 4096] Endgame KRB-KRB} 28. d4 {[%emt 0:00:28]} cxd4 {[%emt 0:00:33]} 29. Bf4 {[%emt 0:00:28]} Rf7 {[%emt 0:01:02]} 30. Be5 {[%emt 0:00:05]} Kc5 {[%emt 0:00:24]} (30... d3 {might work better.} 31. cxd3 d4 32. Bxd4+ Kb7) 31. b4+ {[%emt 0:00:10]} Kb5 {[%emt 0:00:44]} 32. Bxd4 {[%emt 0:01:59]} (32. a4+ $142 Kxa4 33. Rxc6) 32... Bd7 {[%emt 0:01:14]} 33. Rb6+ {[%emt 0:02:49]} Kc4 {[%emt 0:00:06]} 34. Bc5 {[%emt 0:01:09]} (34. c3 $18 {and the rest is easy.}) 34... Bb5 {[%emt 0:02:22]} 35. c3 {[%emt 0:00:56]} Be8 $2 {[%emt 0:00:48] Black cannot hold the game after this.} (35... Rf6 $16) 36. Kc2 {[%emt 0:01:23]} Ba4+ {[%emt 0:01:14]} 37. Kb2 {[%emt 0:00:12] Strongly threatening Ra6.} Kd3 {[%emt 0:00:43]} (37... Bb5 $142 38. Rb8 g6) 38. Re6 {[%emt 0:00:25] aiming for Ra6.} Kc4 $2 {[%emt 0:01:07]} (38... Bb5 39. Rb6 Kc4) 39. Ra6 {[%emt 0:01:18]} Bb5 {[%emt 0:01:02]} 40. Ra5 {[%emt 0:00:04]} Rf6 {[%emt 0:00:37]} 41. a4 {[%emt 0:00:37]} Be8 {[%emt 0:00:02]} 42. Be3 {[%emt 0:00:17]} Kd3 {[%emt 0:00:16]} 43. Rxd5+ {[%emt 0:00:06]} Ke2 {[%emt 0:00:01]} 44. Re5 {[%emt 0:00:17]} Bxa4 {[%emt 0:00:15]} 45. Bg5+ {[%emt 0:00:04]} Kxf2 {[%emt 0:00:02]} 46. Bxf6 gxf6 {[%emt 0:00:01] KR-KB} 47. Rh5 {[%emt 0:00:38] And now b5 would win.} Kxg2 {[%emt 0:00:04]} 48. b5 {[%emt 0:00:07][%cal Bb4b5,Bb5b6,Bb6b7][%mdl 32]} f5 {[%emt 0:00:04]} 49. b6 {[%emt 0:00:42]} Bc6 {[%emt 0:00:01]} 50. Rxh7 {[%emt 0:00:56]} f4 {[%emt 0:00:02]} 51. Rg7 {[%emt 0:01:13]} (51. b7 $142 Bxb7 52. Rxb7 Kh1 53. Rg7 Kg2 54. Rxg4+ Kf3 55. Rg8 Ke2 56. h4) 51... Kh3 {[%emt 0:00:40]} 52. Kc2 {[%emt 0:00:34] White mates.} g3 {[%emt 0:00:32]} 53. hxg3 {[%emt 0:00:19]} fxg3 {[%emt 0:00:11]} 54. b7 {[%emt 0:00:06] Weighted Error Value: White=0.30/Black=0.50} 1-0

[Event "Israeli Team U18-ch 2022"]
[Site "Be'er Ya'akov"]
[Date "2022.08.16"]
[Round "7.8"]
[White "Gorshtein, Asaf"]
[Black "Bilenkiy, Maksym"]
[Result "1/2-1/2"]
[ECO "B10"]
[WhiteElo "2112"]
[BlackElo "1650"]
[Annotator "TA"]
[PlyCount "74"]
[EventDate "2022.08.14"]
[EventCountry "ISR"]
[SourceTitle "playchess.com"]
[Source "ChessBase"]
[SourceQuality "1"]
[TimeControl "3000+10"]

{[%evp 9,74,4,29,-2,16,20,24,0,9,0,18,-14,0,-34,-18,-38,-38,-40,-38,-35,-26,-25,-13,-13,-14,-14,-4,-12,0,-3,0,0,23,23,18,14,18,14,24,0,56,57,55,49,58,55,38,31,39,17,29,23,35,17,22,12,25,5,13,0,0,0,0,0,0,0,-39]} 1. e4 {[%emt 0:00:04]} c6 {[%emt 0:00:06]} 2. Nf3 {[%emt 0:00:10]} d5 {[%emt 0:00:10]} 3. d3 {[%emt 0:00:48]} Bg4 {[%emt 0:00:35]} 4. Be2 {[%emt 0:00:09]} Nf6 {[%emt 0:00:15]} 5. Nbd2 {[%emt 0:01:59]} e6 {[%emt 0:00:29]} 6. c3 {[%emt 0:01:13] B10: Caro-Kann: 2 d3 and 2 c4.} c5 {[%emt 0:00:35]} 7. h3 {[%emt 0:02:40]} Bh5 {[%emt 0:06:48]} 8. O-O {[%emt 0:00:47] White has an edge.} Be7 {[%emt 0:00:06]} 9. Re1 {[%emt 0:00:35]} O-O {[%emt 0:00:27] [#]} 10. Qc2 $146 {[%emt 0:01:13]} ({Predecessor:} 10. Qb3 Qc8 11. exd5 Nxd5 12. d4 Nf4 13. Bf1 Nc6 14. dxc5 Rd8 15. Qc4 Nd5 16. Nd4 {1-0 (38) Firouzja,A (2702)-Sunilduth Lyna,N (2611) chess24.com INT 2020}) 10... Nc6 {[%emt 0:00:41]} 11. Nf1 {[%emt 0:01:42]} d4 {[%emt 0:00:51]} 12. Ng3 {[%emt 0:01:22] [#] Threatens to win with e5.} Bxf3 {[%emt 0:04:32]} 13. Bxf3 {[%emt 0:01:15]} Nd7 {[%emt 0:00:23]} 14. Be2 {[%emt 0:03:30]} Bh4 {[%emt 0:06:03]} 15. Nf1 {[%emt 0:01:04]} Rc8 {[%emt 0:02:25]} 16. g3 {[%emt 0:00:14]} Bf6 {[%emt 0:00:03]} 17. c4 {[%emt 0:02:48]} e5 {[%emt 0:01:06]} 18. Nh2 {[%emt 0:00:38]} a6 {[%emt 0:02:08]} 19. a3 {[%emt 0:04:35]} b5 {[%emt 0:00:23]} 20. b3 {[%emt 0:00:38]} bxc4 {[%emt 0:00:59]} 21. bxc4 {[%emt 0:00:06]} Rb8 {[%emt 0:00:33]} 22. Bd2 {[%emt 0:00:14]} Bg5 {[%emt 0:01:46]} 23. f4 {[%emt 0:01:41][%cal Bf2f4,Bf4f5][%mdl 32]} Be7 {[%emt 0:01:06]} 24. Nf3 {[%emt 0:01:23]} Bd6 {[%emt 0:00:20]} (24... exf4 $11 25. gxf4 Qc7) 25. f5 $1 $14 {[%emt 0:00:35]} Bc7 {[%emt 0:01:27]} 26. Reb1 {[%emt 0:03:44]} Ba5 {[%emt 0:03:46]} 27. Rxb8 {[%emt 0:02:02]} Qxb8 {[%emt 0:01:25]} 28. Bxa5 {[%emt 0:01:34]} Nxa5 {[%emt 0:00:05]} 29. Qa4 {[%emt 0:00:16]} Qc7 {[%emt 0:01:26]} 30. Rb1 {[%emt 0:00:12]} f6 {[%emt 0:00:39]} 31. Nd2 {[%emt 0:00:54]} Kf7 {[%emt 0:01:03]} 32. Bd1 {[%emt 0:00:32]} Ke7 {[%emt 0:00:42]} 33. Bc2 {[%emt 0:00:24]} Rb8 {[%emt 0:01:32] The position is equal.} 34. Rxb8 {[%emt 0:03:30]} Nxb8 {[%emt 0:00:18] Pair of Knights!} 35. Nb3 {[%emt 0:00:32]} Nxb3 {[%emt 0:00:05]} 36. Qxb3 {[%emt 0:00:43]} Nd7 {[%emt 0:00:31]} 37. Kf2 {[%emt 0:00:29]} Qa5 {[%emt 0:04:50] Weighted Error Value: White=0.08 (flawless) /Black=0.08 (flawless)} 1/2-1/2

[Event "Israeli Team U18-ch 2022"]
[Site "Be'er Ya'akov"]
[Date "2022.08.16"]
[Round "7.9"]
[White "Yaniv, Yuval"]
[Black "Aizenberg, Benny"]
[Result "0-1"]
[ECO "B24"]
[WhiteElo "2305"]
[BlackElo "2361"]
[Annotator "TA"]
[PlyCount "73"]
[EventDate "2022.08.14"]
[EventCountry "ISR"]
[SourceTitle "playchess.com"]
[Source "ChessBase"]
[SourceQuality "1"]
[TimeControl "3000+10"]

{[%evp 10,73,25,9,23,8,43,36,110,111,112,83,89,103,127,112,119,122,136,123,118,0,0,-276,-281,-279,-277,-290,-262,-312,-307,-533,-327,-337,-310,-362,-349,-352,-324,-471,-312,-322,-142,-113,-143,-117,0,-435,-450,-1767,-1242,-1185,-1305,-1276,-1275,-1256,-1254,-1231,-1186,-12837,-12837,-6698,-5893,-29968,-29965,-6431]} 1. e4 {[%emt 0:00:04]} c5 {[%emt 0:00:01]} 2. Nc3 {[%emt 0:00:13]} Nc6 {[%emt 0:00:04]} 3. g3 {[%emt 0:01:25]} g6 {[%emt 0:00:04]} 4. Bg2 {[%emt 0:00:06]} Bg7 {[%emt 0:00:04]} 5. d3 {[%emt 0:00:44]} e5 {[%emt 0:00:34]} 6. f4 {[%emt 0:01:50]} Nge7 {[%emt 0:01:06] B24: Closed Sicilian: 3 g3 sidelines.} 7. Nf3 {[%emt 0:00:29]} exf4 {[%emt 0:02:38]} 8. Bxf4 {[%emt 0:04:39]} O-O {[%emt 0:05:46] [#]} (8... d6 $14) 9. Bd6 $146 {[%emt 0:03:10]} ({Predecessor:} 9. O-O Qb6 10. Rb1 Nd4 11. Ne5 Ne6 12. Nc4 Qd8 13. Bd6 Bxc3 14. bxc3 a6 15. Nb6 {1-0 (15) Antal,L (2181)-Varga,P (1816) Miskolc 2004}) 9... Qb6 {[%emt 0:02:54]} 10. Na4 {[%emt 0:08:28]} Qa5+ {[%emt 0:00:08]} 11. c3 $1 {[%emt 0:00:02]} b6 {[%emt 0:00:07]} 12. a3 $1 {[%emt 0:00:23][%cal Ba2a3,Ba3b4][%mdl 32]} Ba6 {[%emt 0:05:55]} 13. b4 $1 {[%emt 0:00:19]} cxb4 {[%emt 0:00:01]} 14. axb4 {[%emt 0:00:02]} Qh5 {[%emt 0:00:13]} (14... Qb5 $2 15. c4 Qh5 16. Rb1 $18) 15. d4 {[%emt 0:02:06]} ({Better is} 15. O-O $16) 15... Rfe8 $1 $11 {[%emt 0:03:49]} 16. Nd2 $2 {[%emt 0:01:40][%mdl 8192]} (16. Kf2 $11) 16... Qh6 $1 $19 {[%emt 0:03:14]} 17. Bf4 {[%emt 0:11:47] Against Qe3+} g5 {[%emt 0:00:04][%cal Bg6g5,Bg5g4][%mdl 32]} 18. Be3 {[%emt 0:00:04] [#]} Nd5 $1 {[%emt 0:04:24][%mdl 512]} 19. Bf2 {[%emt 0:03:58]} (19. Qf3 g4) 19... g4 {[%emt 0:02:42]} 20. Nf1 {[%emt 0:06:01] Against Ne3} (20. Qxg4 f5 21. Qh3 (21. Qxf5 $2 Ne3 $19) 21... Ne3) (20. b5 Bxb5 21. Qb3) 20... Rxe4+ {[%emt 0:05:25]} 21. Bxe4 {[%emt 0:00:08] Black must now prevent Qb3.} Re8 $1 {[%emt 0:00:02]} 22. Nd2 {[%emt 0:02:42]} Bd3 {[%emt 0:01:00] Strongly threatening ...Nf6.} 23. Qxg4 {[%emt 0:01:48]} Nf6 {[%emt 0:01:46][%csl LRe4,LRg4] Dancing on a razor blade.} 24. Qf4 {[%emt 0:00:06]} (24. Qf3 {is the only way for White.} Nxe4 25. Nxe4 Bxe4 26. Qe2) 24... Qh5 {[%emt 0:02:16][%csl Gd3][%cal Rh5e2]} 25. g4 {[%emt 0:00:57]} Qd5 $40 {[%emt 0:01:35][%mdl 128] Black goes for the king.} (25... Qb5 $1 $19 {[%cal Rd3e4] has better winning chances.} 26. Qf5 (26. c4 $2 Qxb4 27. Qg3 Nxe4 $19) 26... d5) 26. c4 $17 {[%emt 0:00:59]} Qe6 {[%emt 0:00:19][%cal Rf6e4]} 27. Nc3 {[%emt 0:00:07] aiming for d5.} ({Much worse is} 27. d5 Qe7 28. Bh4 (28. dxc6 $2 Nxe4 29. Be3 Be5 $19) 28... Qxb4 $1) 27... Nxe4 {[%emt 0:01:30]} 28. Ndxe4 {[%emt 0:00:04][%mdl 8192]} (28. Ncxe4 $11 d5 29. cxd5 Qxd5 30. Ra3 Nxb4 31. Rxa7 Bxe4 32. O-O) 28... Qxc4 $19 {[%emt 0:00:46]} 29. Kd2 {[%emt 0:00:06] [#]} ({Worse is} 29. Qe3 {[#]} Rxe4 $1 {[%mdl 512]} 30. Nxe4 Nxd4) (29. Be3 $142 Bxe4 30. Nxe4 Nxd4 31. Kf2 Qe2+ 32. Kg3) 29... Rxe4 $1 {[%emt 0:00:15][%mdl 512]} 30. Qxe4 {[%emt 0:00:19]} Bxe4 {[%emt 0:00:01]} 31. Nxe4 {[%emt 0:00:10]} Nxb4 {[%emt 0:00:04] ( -> ...Qd3+)} 32. Ra3 {[%emt 0:00:13] Against Qd3+} Qc2+ {[%emt 0:01:09]} 33. Ke3 {[%emt 0:00:03]} d5 {[%emt 0:00:04]} 34. Ng3 {[%emt 0:00:22] [#]} Bxd4+ $1 {[%emt 0:00:24][%mdl 512]} 35. Kxd4 {[%emt 0:00:03]} Qxf2+ {[%emt 0:00:05]} 36. Kc3 {[%emt 0:00:06]} Qc2+ {[%emt 0:00:08]} 37. Kd4 {[%emt 0:00:37] Weighted Error Value: White=1.22/Black=0.31} 0-1